fUST/lending_fUST_20250804
["ID","MTS","AMOUNT","RATE_DAILY","PERIOD"]
[377287930,1754320254838,-2764.52,0.00034794,2]
[377287931,1754320254848,-460.0,0.00034794,2]
[377287932,1754320254857,-151.0,0.00034794,14]
[377287933,1754320254867,-460.0,0.00034794,2]
[377287934,1754320254877,-151.0,0.00034794,14]
[377287935,1754320254886,-460.0,0.00034794,2]
[377287936,1754320254896,-686.95,0.00034794,2]
[377287937,1754320254906,-523.56,0.00034794,2]
[377287938,1754320254915,-460.0,0.00034794,2]
[377287939,1754320254925,-328.83540101,0.00034794,2]
[377287940,1754320254935,-460.0,0.00034794,2]
[377287941,1754320254944,-460.0,0.00034794,2]
[377287942,1754320254954,-460.0,0.00034794,2]
[377287943,1754320254965,-460.0,0.00034794,2]
[377287944,1754320254977,-670.38,0.00034794,2]
[377287945,1754320254986,-586.38,0.00034794,2]
[377287946,1754320254995,-483.92,0.00034794,2]
[377287947,1754320255004,-460.0,0.00034794,2]
[377287948,1754320255014,-1441.46,0.00034794,2]
[377287949,1754320255023,-460.0,0.00034794,2]
[377287950,1754320255033,-460.0,0.00034794,2]
[377287951,1754320255042,-556.6,0.00034794,2]
[377287952,1754320255052,-460.0,0.00034794,2]
[377287953,1754320255061,-151.83738,0.00034794,14]
[377287954,1754320255071,-460.0,0.00034794,2]
[377287955,1754320255080,-959.24,0.00034794,2]
[377287956,1754320255090,-839.25,0.00034794,2]
[377287957,1754320255101,-460.0,0.00034794,2]
[377287958,1754320255110,-2110.54,0.00034794,2]
[377287959,1754320255120,-866.47,0.00034794,2]
[377287960,1754320255130,-460.0,0.00034794,2]
[377287961,1754320255139,-460.0,0.00034794,2]
[377287962,1754320255149,-460.0,0.00034794,2]
[377287963,1754320255158,-460.0,0.00034794,2]
[377287964,1754320255169,-219.532466,0.00034794,14]
[377287965,1754320255179,-219.532466,0.00034794,14]
[377287966,1754320255189,-460.0,0.00034794,2]
[377287967,1754320255198,-460.0,0.00034794,2]
[377287968,1754320255208,-325.19753839,0.00034794,2]
[377287969,1754320255222,-460.0,0.00034794,2]
[377287970,1754320255232,-6299.05,0.00034794,2]
[377287971,1754320255243,-460.0,0.00034794,2]
[377287972,1754320255253,-460.0,0.00034794,2]
[377287973,1754320255263,-460.0,0.00034794,2]
[377287974,1754320255273,-527.04,0.00034794,2]
[377287975,1754320255281,-460.0,0.00034794,2]
[377287976,1754320255290,-460.0,0.00034794,2]
[377287977,1754320255300,-1035.18,0.00034794,2]
[377287978,1754320255311,-767.32,0.00034794,2]
[377287979,1754320255320,-760.58,0.00034794,2]
[377287980,1754320255330,-6855.53,0.00034794,2]
[377287981,1754320255340,-1581.22,0.00034794,2]
[377287982,1754320255350,-494.35,0.00034794,2]
[377287983,1754320255360,-460.0,0.00034794,2]
[377287984,1754320255369,-523.03,0.00034794,2]
[377287985,1754320255379,-460.0,0.00034794,2]
[377287986,1754320255389,-460.0,0.00034794,2]
[377287987,1754320255398,-617.49,0.00034794,2]
[377287988,1754320255408,-581.46,0.00034794,2]
[377287989,1754320255418,-460.0,0.00034794,2]
[377287990,1754320255427,-948.56,0.00034794,2]
[377287991,1754320255437,-780.48,0.00034794,2]
[377287992,1754320255446,-496.13,0.00034794,2]
[377287993,1754320255456,-3804.14,0.00034794,2]
[377287994,1754320255465,-460.0,0.00034794,2]
[377287995,1754320255476,-688.25,0.00034794,2]
[377287996,1754320255486,-460.0,0.00034794,2]
[377287997,1754320255496,-849.14,0.00034794,2]
[377287998,1754320255506,-584.82,0.00034794,2]
[377287999,1754320255515,-583.5,0.00034794,2]
[377288000,1754320255525,-460.0,0.00034794,2]
[377288001,1754320255535,-647.3,0.00034794,2]
[377288002,1754320255544,-460.0,0.00034794,2]
[377288003,1754320255554,-739.03,0.00034794,2]
[377288004,1754320255563,-460.0,0.00034794,2]
[377288005,1754320255574,-619.22,0.00034794,2]
[377288006,1754320255584,-3267.42,0.00034794,2]
[377288007,1754320255593,-537.06,0.00034794,2]
[377288008,1754320255603,-553.6,0.00034794,2]
[377288009,1754320255612,-460.0,0.00034794,2]
[377288010,1754320255622,-460.0,0.00034794,2]
[377288011,1754320255632,-977.49,0.00034794,2]
[377288012,1754320255642,-460.0,0.00034794,2]
[377288013,1754320255653,-460.0,0.00034794,2]
[377288014,1754320255663,-2718.21,0.00034794,2]
[377288015,1754320255672,-557.34,0.00034794,2]
[377288016,1754320255681,-460.0,0.00034794,2]
[377288017,1754320255691,-460.0,0.00034794,2]
[377288018,1754320255701,-1268.05,0.00034794,2]
[377288019,1754320255710,-460.0,0.00034794,2]
[377288020,1754320255721,-816.99,0.00034794,2]
[377288021,1754320255730,-460.0,0.00034794,2]
[377288022,1754320255740,-368.41048483,0.00034794,2]
[377288023,1754320255750,-460.0,0.00034794,2]
[377288024,1754320255759,-460.0,0.00034794,2]
[377288025,1754320255769,-644.51,0.00034794,2]
[377288026,1754320255779,-460.0,0.00034794,2]
[377288027,1754320255790,-621.34,0.00034794,2]
[377288028,1754320255799,-460.0,0.00034794,2]
[377288029,1754320255809,-510.34,0.00034794,2]
[377288030,1754320255819,-480.57,0.00034794,2]
[377288031,1754320255829,-2931.08,0.00034794,2]
[377288032,1754320255839,-757.98,0.00034794,2]
[377288033,1754320255849,-460.0,0.00034794,2]
[377288034,1754320255858,-460.0,0.00034794,2]
[377288035,1754320255868,-460.0,0.00034794,2]
[377288036,1754320255877,-2661.3,0.00034794,2]
[377288037,1754320255887,-460.0,0.00034794,2]
[377288038,1754320255898,-858.24,0.00034794,2]
[377288039,1754320255909,-484.17,0.00034794,2]
[377288040,1754320255919,-460.0,0.00034794,2]
[377288041,1754320255929,-5634.25,0.00034794,2]
[377288042,1754320255939,-1218.26,0.00034794,2]
[377288043,1754320255949,-1569.94,0.00034794,2]
[377288044,1754320255958,-984.94,0.00034794,2]
[377288045,1754320255969,-6220.6,0.00034794,2]
[377288046,1754320255978,-1002.56,0.00034794,2]
[377288047,1754320255988,-9007.28,0.00034794,2]
[377288048,1754320255997,-151.0,0.00034794,14]
[377288049,1754320256007,-640.3451,0.000348,2]
[377288050,1754320256017,-1000.0,0.00034816,5]
[377288051,1754320256027,-405.59629683,0.00034816,5]
[377288052,1754320256037,-2000.0,0.00034816,5]
[377288053,1754320256047,-343.05,0.00034835,60]
[377288054,1754320256056,-760.0,0.00034888,2]
[377288055,1754320256066,-442.25,0.00034897,60]
[377288056,1754320256076,-200.0,0.00034909,120]
[377288057,1754320256086,-343.64727809,0.00034935,60]
[377288058,1754320256095,-1405.566279,0.0003494,9]
[377288059,1754320256105,-1000.0,0.0003496,9]
[377288060,1754320256115,-1000.0,0.0003498,9]
[377288061,1754320256124,-1134.72628,0.0003498,9]
[377288062,1754320256134,-442.25,0.00034997,60]
[377288063,1754320256145,-933.65433478,0.00035,120]
[377288064,1754320256155,-165.999999,0.00035,2]
[377288065,1754320256164,-650.74,0.00035,7]
[377288066,1754320256174,-1000.0,0.00035,9]
[377288067,1754320256184,-1000.0,0.00035,9]
[377288068,1754320256193,-1000.0,0.00035064,5]
[377288069,1754320256203,-183.00602195,0.00035064,5]
[377288070,1754320256214,-699.64249486,0.00035064,2]
[377288071,1754320256234,-151.0,0.00035068,14]
[377288072,1754320256245,-151.0,0.00035068,14]
[377288073,1754320256254,-151.0,0.00035068,14]
[377288074,1754320256264,-186.496639,0.00035068,14]
[377288075,1754320256273,-186.496639,0.00035068,14]
[377288076,1754320256283,-151.0,0.00035068,14]
[377288077,1754320256292,-151.0,0.00035068,14]
[377288078,1754320256302,-151.0,0.00035068,14]
[377288079,1754320256312,-501.05702949,0.00035068,2]
[377288080,1754320256323,-460.0,0.00035068,2]
[377288081,1754320256334,-700.92,0.00035068,2]
[377288082,1754320256343,-460.0,0.00035068,2]
[377288083,1754320256353,-460.0,0.00035068,2]
[377288084,1754320256364,-152.90069,0.00035068,14]
[377288085,1754320256373,-2764.52,0.00035068,2]
[377288086,1754320256383,-460.0,0.00035068,2]
[377288087,1754320256395,-460.0,0.00035068,2]
[377288088,1754320256405,-460.0,0.00035068,2]
[377288089,1754320256415,-686.95,0.00035068,2]
[377288090,1754320256424,-523.56,0.00035068,2]
[377288091,1754320256434,-460.0,0.00035068,2]
[377288092,1754320256443,-460.0,0.00035068,2]
[377288093,1754320256453,-460.0,0.00035068,2]
[377288094,1754320256462,-460.0,0.00035068,2]
[377288095,1754320256472,-460.0,0.00035068,2]
[377288096,1754320256481,-670.38,0.00035068,2]
[377288097,1754320256491,-586.38,0.00035068,2]
[377288098,1754320256501,-483.92,0.00035068,2]
[377288099,1754320256510,-460.0,0.00035068,2]
[377288100,1754320256519,-1441.46,0.00035068,2]
[377288101,1754320256529,-460.0,0.00035068,2]
[377288102,1754320256541,-151.0,0.00035068,14]
[377288103,1754320256550,-556.6,0.00035068,2]
[377288104,1754320256561,-460.0,0.00035068,2]
[377288105,1754320256572,-151.0,0.00035068,14]
[377288106,1754320256582,-460.0,0.00035068,2]
[377288107,1754320256591,-460.0,0.00035068,2]
[377288108,1754320256601,-959.24,0.00035068,2]
[377288109,1754320256612,-839.25,0.00035068,2]
[377288110,1754320256622,-460.0,0.00035068,2]
[377288111,1754320256632,-2110.54,0.00035068,2]
[377288112,1754320256641,-866.47,0.00035068,2]
[377288113,1754320256651,-460.0,0.00035068,2]
[377288114,1754320256661,-151.0,0.00035068,14]
[377288115,1754320256671,-151.0,0.00035068,14]
[377288116,1754320256680,-460.0,0.00035068,2]
[377288117,1754320256690,-460.0,0.00035068,2]
[377288118,1754320256700,-460.0,0.00035068,2]
[377288119,1754320256710,-460.0,0.00035068,2]
[377288120,1754320256719,-460.0,0.00035068,2]
[377288121,1754320256729,-460.0,0.00035068,2]
[377288122,1754320256739,-6299.05,0.00035068,2]
[377288123,1754320256749,-460.0,0.00035068,2]
[377288124,1754320256759,-460.0,0.00035068,2]
[377288125,1754320256768,-460.0,0.00035068,2]
[377288126,1754320256779,-527.04,0.00035068,2]
[377288127,1754320256790,-460.0,0.00035068,2]
[377288128,1754320256802,-460.0,0.00035068,2]
[377288129,1754320256813,-1035.18,0.00035068,2]
[377288130,1754320256852,-767.32,0.00035068,2]
[377288131,1754320256862,-760.58,0.00035068,2]
[377288132,1754320256872,-6855.53,0.00035068,2]
[377288133,1754320256882,-1581.22,0.00035068,2]
[377288134,1754320256892,-494.35,0.00035068,2]
[377288135,1754320256902,-460.0,0.00035068,2]
[377288136,1754320256913,-523.03,0.00035068,2]
[377288137,1754320256923,-460.0,0.00035068,2]
[377288138,1754320256932,-460.0,0.00035068,2]
[377288139,1754320256941,-617.49,0.00035068,2]
[377288140,1754320256951,-581.46,0.00035068,2]
[377288141,1754320256961,-460.0,0.00035068,2]
[377288142,1754320256971,-948.56,0.00035068,2]
[377288143,1754320256980,-780.48,0.00035068,2]
[377288144,1754320256990,-496.13,0.00035068,2]
[377288145,1754320256999,-3804.14,0.00035068,2]
[377288146,1754320257009,-460.0,0.00035068,2]
[377288147,1754320257019,-688.25,0.00035068,2]
[377288148,1754320257028,-460.0,0.00035068,2]
[377288149,1754320257038,-849.14,0.00035068,2]
[377288150,1754320257048,-584.82,0.00035068,2]
[377288151,1754320257058,-583.5,0.00035068,2]
[377288152,1754320257068,-460.0,0.00035068,2]
[377288153,1754320257078,-647.3,0.00035068,2]
[377288154,1754320257088,-460.0,0.00035068,2]
[377288155,1754320257097,-739.03,0.00035068,2]
[377288156,1754320257106,-460.0,0.00035068,2]
[377288157,1754320257116,-619.22,0.00035068,2]
[377288158,1754320257125,-3267.42,0.00035068,2]
[377288159,1754320257134,-537.06,0.00035068,2]
[377288160,1754320257144,-553.6,0.00035068,2]
[377288161,1754320257153,-460.0,0.00035068,2]
[377288162,1754320257163,-460.0,0.00035068,2]
[377288163,1754320257172,-977.49,0.00035068,2]
[377288164,1754320257181,-460.0,0.00035068,2]
[377288165,1754320257190,-2718.21,0.00035068,2]
[377288166,1754320257199,-460.0,0.00035068,2]
[377288167,1754320257209,-557.34,0.00035068,2]
[377288168,1754320257220,-389.68910741,0.00035068,2]
[377288169,1754320257229,-460.0,0.00035068,2]
[377288170,1754320257239,-1268.05,0.00035068,2]
[377288171,1754320257248,-460.0,0.00035068,2]
[377288172,1754320257258,-816.99,0.00035068,2]
[377288173,1754320257268,-460.0,0.00035068,2]
[377288174,1754320257278,-460.0,0.00035068,2]
[377288175,1754320257288,-460.0,0.00035068,2]
[377288176,1754320257298,-644.51,0.00035068,2]
[377288177,1754320257308,-460.0,0.00035068,2]
[377288178,1754320257317,-621.34,0.00035068,2]
[377288179,1754320257327,-207.5714157,0.00035068,2]
[377288180,1754320257336,-510.34,0.00035068,2]
[377288181,1754320257345,-2931.08,0.00035068,2]
[377288182,1754320257355,-480.57,0.00035068,2]
[377288183,1754320257366,-2931.08,0.00035068,2]
[377288184,1754320257379,-757.98,0.00035068,2]
[377288185,1754320257389,-460.0,0.00035068,2]
[377288186,1754320257398,-460.0,0.00035068,2]
[377288187,1754320257408,-460.0,0.00035068,2]
[377288188,1754320257418,-2661.3,0.00035068,2]
[377288189,1754320257427,-460.0,0.00035068,2]
[377288190,1754320257437,-858.24,0.00035068,2]
[377288191,1754320257446,-484.17,0.00035068,2]
[377288192,1754320257455,-460.0,0.00035068,2]
[377288193,1754320257465,-5634.25,0.00035068,2]
[377288194,1754320257475,-1218.26,0.00035068,2]
[377288195,1754320257485,-1569.94,0.00035068,2]
[377288196,1754320257496,-984.94,0.00035068,2]
[377288197,1754320257507,-6220.6,0.00035068,2]
[377288198,1754320257517,-1002.56,0.00035068,2]
[377288199,1754320257526,-9007.28,0.00035068,2]
[377288200,1754320257536,-442.25,0.00035097,60]
[377288201,1754320257545,-206.0,0.0003518,30]
[377288202,1754320257555,-442.25,0.00035197,60]
[377288203,1754320257564,-151.0,0.000352,18]
[377288204,1754320257573,-200.0,0.00035238,120]
[377288205,1754320257583,-226.72539,0.00035238,14]
[377288206,1754320257593,-442.25,0.00035297,60]
[377288207,1754320257602,-37083.47,0.000353,14]
[377288208,1754320257611,-259.809258,0.000353,14]
[377288209,1754320257620,-259.809258,0.000353,14]
[377288210,1754320257629,-151.0,0.000353,14]
[377288211,1754320257638,-184.190767,0.000353,14]
[377288212,1754320257647,-184.190767,0.000353,14]
[377288213,1754320257657,-151.0,0.000353,14]
[377288214,1754320257667,-151.0,0.000353,14]
[377288215,1754320257676,-151.0,0.00035342,14]
[377288216,1754320257685,-807.11999,0.00035342,14]
[377288217,1754320257695,-807.11999,0.00035342,14]
[377288218,1754320257704,-186.496639,0.00035342,14]
[377288219,1754320257714,-186.496639,0.00035342,14]
[377288220,1754320257723,-151.0,0.00035342,14]
[377288221,1754320257734,-151.0,0.00035342,14]
[377288222,1754320257743,-460.0,0.00035342,2]
[377288223,1754320257752,-700.92,0.00035342,2]
[377288224,1754320257762,-460.0,0.00035342,2]
[377288225,1754320257772,-460.0,0.00035342,2]
[377288226,1754320257782,-2764.52,0.00035342,2]
[377288227,1754320257791,-460.0,0.00035342,2]
[377288228,1754320257800,-460.0,0.00035342,2]
[377288229,1754320257810,-460.0,0.00035342,2]
[377288230,1754320257820,-686.95,0.00035342,2]
[377288231,1754320257829,-523.56,0.00035342,2]
[377288232,1754320257838,-460.0,0.00035342,2]
[377288233,1754320257847,-460.0,0.00035342,2]
[377288234,1754320257857,-460.0,0.00035342,2]
[377288235,1754320257866,-460.0,0.00035342,2]
[377288236,1754320257876,-460.0,0.00035342,2]
[377288237,1754320257885,-670.38,0.00035342,2]
[377288238,1754320257894,-586.38,0.00035342,2]
[377288239,1754320257905,-483.92,0.00035342,2]
[377288240,1754320257915,-460.0,0.00035342,2]
[377288241,1754320257925,-1441.46,0.00035342,2]
[377288242,1754320257934,-460.0,0.00035342,2]
[377288243,1754320257944,-556.6,0.00035342,2]
[377288244,1754320257954,-460.0,0.00035342,2]
[377288245,1754320257964,-460.0,0.00035342,2]
[377288246,1754320257974,-460.0,0.00035342,2]
[377288247,1754320257984,-959.24,0.00035342,2]
[377288248,1754320257994,-839.25,0.00035342,2]
[377288249,1754320258003,-460.0,0.00035342,2]
[377288250,1754320258013,-2110.54,0.00035342,2]
[377288251,1754320258023,-866.47,0.00035342,2]
[377288252,1754320258032,-460.0,0.00035342,2]
[377288253,1754320258042,-460.0,0.00035342,2]
[377288254,1754320258052,-461.96305729,0.00035342,2]
[377288255,1754320258062,-460.0,0.00035342,2]
[377288256,1754320258072,-219.532466,0.00035342,14]
[377288257,1754320258082,-219.532466,0.00035342,14]
[377288258,1754320258091,-460.0,0.00035342,2]
[377288259,1754320258102,-460.0,0.00035342,2]
[377288260,1754320258112,-460.0,0.00035342,2]
[377288261,1754320258127,-6299.05,0.00035342,2]
[377288262,1754320258136,-460.0,0.00035342,2]
[377288263,1754320258147,-460.0,0.00035342,2]
[377288264,1754320258158,-460.0,0.00035342,2]
[377288265,1754320258167,-527.04,0.00035342,2]
[377288266,1754320258178,-460.0,0.00035342,2]
[377288267,1754320258188,-460.0,0.00035342,2]
[377288268,1754320258198,-1035.18,0.00035342,2]
[377288269,1754320258209,-767.32,0.00035342,2]
[377288270,1754320258221,-6855.53,0.00035342,2]
[377288271,1754320258231,-760.58,0.00035342,2]
[377288272,1754320258241,-1581.22,0.00035342,2]
[377288273,1754320258251,-494.35,0.00035342,2]
[377288274,1754320258262,-460.0,0.00035342,2]
[377288275,1754320258272,-523.03,0.00035342,2]
[377288276,1754320258282,-460.0,0.00035342,2]
[377288277,1754320258292,-460.0,0.00035342,2]
[377288278,1754320258302,-617.49,0.00035342,2]
[377288279,1754320258312,-581.46,0.00035342,2]
[377288280,1754320258322,-460.0,0.00035342,2]
[377288281,1754320258332,-948.56,0.00035342,2]
[377288282,1754320258342,-780.48,0.00035342,2]
[377288283,1754320258351,-496.13,0.00035342,2]
[377288284,1754320258361,-3804.14,0.00035342,2]
[377288285,1754320258372,-460.0,0.00035342,2]
[377288286,1754320258382,-688.25,0.00035342,2]
[377288287,1754320258392,-460.0,0.00035342,2]
[377288288,1754320258402,-849.14,0.00035342,2]
[377288289,1754320258413,-584.82,0.00035342,2]
[377288290,1754320258422,-583.5,0.00035342,2]
[377288291,1754320258435,-351.81790957,0.00035342,2]
[377288292,1754320258446,-647.3,0.00035342,2]
[377288293,1754320258457,-268.01521951,0.00035342,2]
[377288294,1754320258468,-739.03,0.00035342,2]
[377288295,1754320258479,-619.22,0.00035342,2]
[377288296,1754320258491,-3267.42,0.00035342,2]
[377288297,1754320258501,-460.0,0.00035342,2]
[377288298,1754320258511,-537.06,0.00035342,2]
[377288299,1754320258522,-553.6,0.00035342,2]
[377288300,1754320258532,-460.0,0.00035342,2]
[377288301,1754320258543,-460.0,0.00035342,2]
[377288302,1754320258553,-977.49,0.00035342,2]
[377288303,1754320258563,-460.0,0.00035342,2]
[377288304,1754320258572,-2718.21,0.00035342,2]
[377288305,1754320258582,-460.0,0.00035342,2]
[377288306,1754320258592,-557.34,0.00035342,2]
[377288307,1754320258602,-460.0,0.00035342,2]
[377288308,1754320258612,-1268.05,0.00035342,2]
[377288309,1754320258621,-460.0,0.00035342,2]
[377288310,1754320258632,-816.99,0.00035342,2]
[377288311,1754320258641,-460.0,0.00035342,2]
[377288312,1754320258651,-460.0,0.00035342,2]
[377288313,1754320258661,-460.0,0.00035342,2]
[377288314,1754320258671,-644.51,0.00035342,2]
[377288315,1754320258680,-460.0,0.00035342,2]
[377288316,1754320258691,-621.34,0.00035342,2]
[377288317,1754320258701,-510.34,0.00035342,2]
[377288318,1754320258711,-2931.08,0.00035342,2]
[377288319,1754320258721,-480.57,0.00035342,2]
[377288320,1754320258731,-2931.08,0.00035342,2]
[377288321,1754320258741,-757.98,0.00035342,2]
[377288322,1754320258750,-460.0,0.00035342,2]
[377288323,1754320258760,-460.0,0.00035342,2]
[377288324,1754320258770,-460.0,0.00035342,2]
[377288325,1754320258780,-2661.3,0.00035342,2]
[377288326,1754320258790,-460.0,0.00035342,2]
[377288327,1754320258800,-858.24,0.00035342,2]
[377288328,1754320258810,-484.17,0.00035342,2]
[377288329,1754320258820,-460.0,0.00035342,2]
[377288330,1754320258830,-5634.25,0.00035342,2]
[377288331,1754320258840,-1218.26,0.00035342,2]
[377288332,1754320258850,-1569.94,0.00035342,2]
[377288333,1754320258860,-984.94,0.00035342,2]
[377288334,1754320258870,-6220.6,0.00035342,2]
[377288335,1754320258880,-1002.56,0.00035342,2]
[377288336,1754320258890,-9007.28,0.00035342,2]
[377288337,1754320258901,-2500.0,0.00035364,5]
[377288338,1754320258911,-442.25,0.00035397,60]
[377288339,1754320258920,-860.0,0.00035436,2]
[377288340,1754320258930,-306.7325404,0.00035445,30]
[377288341,1754320258940,-442.25,0.00035497,60]
[377288342,1754320258951,-2244.32,0.000355,7]
[377288343,1754320258961,-5641.44,0.000355,14]
[377288344,1754320258971,-202.47861562,0.00035512,14]
[377288345,1754320258981,-200.0,0.00035557,120]
[377288346,1754320258991,-200.0,0.00035591,120]
[377288347,1754320259001,-442.25,0.00035597,60]
[377288348,1754320259011,-1200.0,0.00035612,5]
[377288349,1754320259021,-151.0,0.00035616,14]
[377288350,1754320259031,-807.11999,0.00035616,14]
[377288351,1754320259040,-807.11999,0.00035616,14]
[377288352,1754320259050,-151.0,0.00035616,14]
[377288353,1754320259059,-151.0,0.00035616,14]
[377288354,1754320259069,-151.0,0.00035616,14]
[377288355,1754320259079,-259.809258,0.00035616,14]
[377288356,1754320259089,-259.809258,0.00035616,14]
[377288357,1754320259099,-151.0,0.00035616,14]
[377288358,1754320259108,-184.190767,0.00035616,14]
[377288359,1754320259119,-184.190767,0.00035616,14]
[377288360,1754320259128,-460.0,0.00035616,2]
[377288361,1754320259138,-700.92,0.00035616,2]
[377288362,1754320259147,-460.0,0.00035616,2]
[377288363,1754320259158,-460.0,0.00035616,2]
[377288364,1754320259167,-2764.52,0.00035616,2]
[377288365,1754320259177,-191.57916187,0.00035616,2]
[377288366,1754320259186,-151.0,0.00035616,14]
[377288367,1754320259196,-460.0,0.00035616,2]
[377288368,1754320259206,-219.037806,0.00035616,14]
[377288369,1754320259218,-460.0,0.00035616,2]
[377288370,1754320259229,-686.95,0.00035616,2]
[377288371,1754320259238,-523.56,0.00035616,2]
[377288372,1754320259248,-460.0,0.00035616,2]
[377288373,1754320259259,-460.0,0.00035616,2]
[377288374,1754320259268,-460.0,0.00035616,2]
[377288375,1754320259277,-460.0,0.00035616,2]
[377288376,1754320259287,-460.0,0.00035616,2]
[377288377,1754320259296,-670.38,0.00035616,2]
[377288378,1754320259306,-586.38,0.00035616,2]
[377288379,1754320259315,-483.92,0.00035616,2]
[377288380,1754320259325,-460.0,0.00035616,2]
[377288381,1754320259334,-1441.46,0.00035616,2]
[377288382,1754320259343,-460.0,0.00035616,2]
[377288383,1754320259354,-151.0,0.00035616,14]
[377288384,1754320259364,-556.6,0.00035616,2]
[377288385,1754320259375,-368.42563646,0.00035616,2]
[377288386,1754320259385,-151.0,0.00035616,14]
[377288387,1754320259395,-460.0,0.00035616,2]
[377288388,1754320259406,-460.0,0.00035616,2]
[377288389,1754320259416,-959.24,0.00035616,2]
[377288390,1754320259426,-839.25,0.00035616,2]
[377288391,1754320259436,-460.0,0.00035616,2]
[377288392,1754320259446,-2110.54,0.00035616,2]
[377288393,1754320259456,-866.47,0.00035616,2]
[377288394,1754320259466,-460.0,0.00035616,2]
[377288395,1754320259477,-151.0,0.00035616,14]
[377288396,1754320259487,-151.0,0.00035616,14]
[377288397,1754320259496,-460.0,0.00035616,2]
[377288398,1754320259506,-460.0,0.00035616,2]
[377288399,1754320259516,-460.0,0.00035616,2]
[377288400,1754320259525,-460.0,0.00035616,2]
[377288401,1754320259535,-460.0,0.00035616,2]
[377288402,1754320259545,-6299.05,0.00035616,2]
[377288403,1754320259555,-378.50852751,0.00035616,2]
[377288404,1754320259566,-460.0,0.00035616,2]
[377288405,1754320259575,-460.0,0.00035616,2]
[377288406,1754320259584,-527.04,0.00035616,2]
[377288407,1754320259594,-460.0,0.00035616,2]
[377288408,1754320259604,-460.0,0.00035616,2]
[377288409,1754320259613,-1035.18,0.00035616,2]
[377288410,1754320259623,-767.32,0.00035616,2]
[377288411,1754320259633,-6855.53,0.00035616,2]
[377288412,1754320259642,-760.58,0.00035616,2]
[377288413,1754320259652,-1581.22,0.00035616,2]
[377288414,1754320259662,-494.35,0.00035616,2]
[377288415,1754320259672,-460.0,0.00035616,2]
[377288416,1754320259681,-460.0,0.00035616,2]
[377288417,1754320259691,-523.03,0.00035616,2]
[377288418,1754320259700,-460.0,0.00035616,2]
[377288419,1754320259710,-581.46,0.00035616,2]
[377288420,1754320259720,-617.49,0.00035616,2]
[377288421,1754320259730,-460.0,0.00035616,2]
[377288422,1754320259739,-948.56,0.00035616,2]
[377288423,1754320259749,-780.48,0.00035616,2]
[377288424,1754320259759,-496.13,0.00035616,2]
[377288425,1754320259769,-3804.14,0.00035616,2]
[377288426,1754320259780,-604.43693808,0.00035616,2]
[377288427,1754320259790,-688.25,0.00035616,2]
[377288428,1754320259800,-460.0,0.00035616,2]
[377288429,1754320259810,-849.14,0.00035616,2]